bitfinex/quotes_ETHUSD_20220218
["timestamp","ask_amount","ask_price","bid_price","bid_amount"]
[1645158997847,0.75656035,2903.5,2903.2,0.0032464]
[1645158998093,0.75656035,2903.5,2902.9,0.69723551]
[1645158998293,1.06068465,2903.2,2903.0,0.00378866]
[1645158998697,3.5,2903.1,2903.0,0.00378866]
[1645158998900,0.00016405,2902.9,2902.6,1.416]
[1645158999102,0.00016405,2902.9,2902.7,0.69743132]
[1645158999301,0.00016405,2902.9,2902.7,0.70130923]
[1645158999499,0.00016405,2902.9,2902.8,0.00387791]
[1645158999701,0.00016405,2902.9,2902.6,0.0032467]
[1645158999905,1.17123369,2902.7,2902.6,0.0032467]
[1645159000501,1.17123369,2902.7,2902.6,0.69730889]
[1645159000902,0.00016405,2902.9,2902.6,0.69730889]
[1645159001102,0.00016405,2902.9,2902.7,0.00387791]
[1645159001303,0.00016405,2902.9,2902.7,0.7011868]
[1645159001503,0.00016405,2902.9,2902.5,0.86470677]
[1645159001504,0.00016405,2902.9,2902.8,0.7011868]
[1645159001748,0.00016405,2902.9,2902.8,0.69730889]
[1645159001954,0.00016405,2902.9,2902.7,0.70055556]
[1645159002157,0.00016405,2902.9,2902.8,0.69730889]
[1645159002355,0.00016405,2902.9,2902.8,0.70118666]
[1645159008801,0.00016405,2902.9,2902.8,0.70026125]
[1645159010344,0.00016405,2902.9,2902.8,2.42286125]
[1645159010746,0.00016405,2902.9,2902.8,0.70026125]
[1645159012446,0.00016405,2902.9,2902.8,4.20026125]
[1645159012645,0.00016405,2902.9,2902.8,0.70026125]
[1645159013494,0.00016405,2902.9,2902.8,2.42286125]
[1645159016299,0.00016405,2902.9,2902.8,3.02286125]
[1645159017953,0.00016405,2902.9,2902.8,1.30026125]
[1645159018157,0.00016405,2902.9,2902.8,0.70026125]
[1645159019755,0.86155,2903.0,2902.8,0.70026125]
[1645159019756,0.80297316,2903.0,2902.8,0.70026125]
[1645159019956,0.80297316,2903.0,2902.8,0.00387777]
[1645159020157,1.10775536,2903.1,2902.7,0.00324664]
[1645159020999,1.10775536,2903.1,2902.6,0.00387777]
[1645159021197,1.10775536,2903.1,2902.8,0.00324661]
[1645159021599,1.96928536,2903.1,2902.8,0.00324661]
[1645159022203,1.96928536,2903.1,2902.6,0.00387777]
[1645159022401,1.96928536,2903.1,2902.8,0.00324658]
[1645159023403,1.96928536,2903.1,2902.6,0.00387777]
[1645159023607,1.96928536,2903.1,2902.8,0.00324658]
[1645159024542,1.10775536,2903.1,2902.7,0.00387777]
[1645159024739,1.10775536,2903.1,2902.8,0.00324658]
[1645159025740,1.10775536,2903.1,2902.7,0.00387777]
[1645159025941,1.96927536,2903.1,2902.8,0.00324658]
[1645159026948,1.81634102,2903.1,2902.7,0.00387777]
[1645159027145,1.81634102,2903.1,2902.8,0.00324658]
[1645159027546,0.95482102,2903.1,2902.8,0.00324658]
[1645159027846,0.95482102,2903.1,2902.8,0.00712435]
[1645159028102,0.95482102,2903.1,2902.8,0.00387777]
[1645159028296,0.95482102,2903.1,2902.8,0.00712435]
[1645159028899,0.76044892,2903.0,2902.9,0.70014212]
[1645159029502,0.76044892,2903.0,2902.4,0.00387777]
[1645159029703,0.76044892,2903.0,2902.8,0.00324658]
[1645159029902,1.62202892,2903.0,2902.8,0.00324658]
[1645159030106,0.76044892,2902.9,2902.8,0.00324658]
[1645159030507,0.76044892,2902.9,2902.7,0.70014212]
[1645159030703,1.62212892,2902.9,2902.8,0.70014212]
[1645159031002,1.62212892,2902.9,2902.8,0.70401989]
[1645159031603,2.48379892,2902.9,2902.8,0.70401989]
[1645159034050,2.48379892,2902.9,2902.2,1.2105]
[1645159034051,4.5,2902.8,2902.2,1.2105]
[1645159034251,3.11337261,2902.7,2902.3,0.00383933]
[1645159034451,3.11337261,2902.7,2902.1,0.00383933]
[1645159034452,2.03378,2902.7,2902.1,0.00383933]
[1645159034650,2.03378,2902.7,2901.9,0.00383933]
[1645159035049,2.03378,2902.7,2901.6,0.65409972]
[1645159035050,0.89314949,2901.7,2901.6,0.65409972]
[1645159035498,0.89314949,2901.7,2901.5,0.00384026]
[1645159035897,0.89314949,2901.7,2901.3,0.00384026]
[1645159036702,0.89314949,2901.7,2901.4,0.00324751]
[1645159037708,0.89314949,2901.7,2901.5,0.3]
[1645159037907,0.89314949,2901.7,2901.5,0.30384026]
[1645159039012,0.0813232,2901.7,2901.5,0.30384026]
[1645159039245,0.0813232,2901.7,2901.5,0.0070877]
[1645159039450,0.0813232,2901.7,2901.5,0.00324744]
[1645159040150,0.0813232,2901.7,2901.5,1.72365]
[1645159040351,0.0813232,2901.7,2901.5,1.72749026]
[1645159040552,0.0813232,2901.7,2901.5,1.7307377]
[1645159041252,0.0813232,2901.7,2901.5,1.72749026]
[1645159041657,0.0813232,2901.7,2901.5,0.0070877]
[1645159041853,0.0813232,2901.7,2901.5,0.00324744]
[1645159042053,0.0813232,2901.7,2901.5,0.0070877]
[1645159042454,0.0813232,2901.7,2901.5,0.00384026]
[1645159042852,0.0813232,2901.7,2901.5,0.0070877]
[1645159043102,0.0813232,2901.7,2901.5,0.86507744]
[1645159043299,0.0813232,2901.7,2901.5,0.8689177]
[1645159043703,0.0813232,2901.7,2901.5,0.86567026]
[1645159043904,0.0813232,2901.7,2901.5,1.72751026]
[1645159044209,0.0813232,2901.7,2901.5,1.7307577]
[1645159044707,3.0427,2902.3,2901.6,0.86173]
[1645159044905,3.0427,2902.3,2901.6,0.86557026]
[1645159045106,3.5,2902.2,2901.7,0.00384026]
[1645159045706,3.0427,2902.3,2901.7,0.00384026]
[1645159045906,3.5,2902.2,2901.7,0.00384026]
[1645159046109,3.0427,2902.3,2901.7,0.00384026]
[1645159046308,3.0427,2902.3,2901.9,0.00324719]
[1645159046508,3.6721,2902.6,2901.9,0.00708745]
[1645159046752,0.86175,2902.4,2901.9,0.00708745]
[1645159046952,3.5,2902.3,2901.9,0.00708745]
[1645159047353,3.5,2902.3,2901.9,0.00384026]
[1645159047552,3.5,2902.3,2902.0,0.00324712]
[1645159048553,3.5,2902.3,2901.9,0.00384026]
[1645159048952,3.5,2902.3,2902.0,0.00324709]
[1645159049556,0.1721,2902.4,2902.0,0.00324709]
[1645159049754,2.03382,2902.5,2901.9,0.86172]
[1645159049953,1.86172,2902.5,2902.0,0.00708735]
[1645159050154,3.5,2902.4,2902.0,0.00708735]
[1645159050355,3.5,2902.4,2902.0,0.00324709]
[1645159050602,0.86193,2902.2,2902.0,0.00324709]
[1645159050802,3.5,2902.1,2902.0,0.00324709]
[1645159051003,3.5,2902.1,2901.7,0.00384026]
[1645159051302,3.5,2902.1,2902.0,0.00324712]
[1645159051706,5.22386,2902.1,2902.0,0.00324712]
[1645159051912,6.08582,2902.1,2902.0,0.00324712]
[1645159052108,6.08582,2902.1,2901.2,0.00384026]
[1645159052307,0.86192,2901.9,2901.2,0.00384026]
[1645159052507,0.86192,2901.9,2901.2,0.01683217]
[1645159053209,0.86192,2901.9,2901.2,0.87876217]
[1645159053512,0.86192,2901.9,2901.4,0.00324748]
[1645159054110,0.86192,2901.9,2901.4,0.65050706]
[1645159054350,0.86187,2902.0,2901.5,0.65109984]
[1645159054554,0.86187,2902.0,2901.6,0.00384026]
[1645159054953,3.5,2902.1,2901.6,0.65109984]
[1645159055154,3.5,2902.1,2901.7,0.00384026]
[1645159055351,3.1631,2902.2,2901.7,0.86562026]
[1645159055551,3.1631,2902.2,2901.8,0.65109984]
[1645159055753,3.1631,2902.2,2901.8,0.64725958]
[1645159055954,3.1631,2902.2,2901.9,0.00384026]
[1645159056159,3.1191,2902.7,2901.9,0.65109984]
[1645159056355,3.1191,2902.7,2902.0,0.64725958]
[1645159056553,1.9164,2902.7,2902.1,0.00384026]
[1645159056755,0.1721,2903.0,2902.1,0.65109984]
[1645159056756,0.80567945,2902.6,2902.1,0.65109984]
[1645159056956,0.1721,2903.0,2902.2,0.64725958]
[1645159057161,0.80572549,2902.9,2902.3,1.51597677]
[1645159057357,0.86164,2902.8,2902.3,0.00324693]
[1645159057557,4.30572549,2902.7,2902.4,0.00384026]
[1645159057757,0.80572549,2902.6,2902.3,0.00324693]
[1645159058195,0.80572549,2902.6,2901.9,0.64737051]
[1645159058398,3.6721,2902.5,2902.3,0.0032469]
[1645159058596,0.80572549,2902.4,2902.3,0.0032469]
[1645159058795,1.80572549,2902.4,2902.3,0.0032469]
[1645159058997,5.30572549,2902.4,2902.3,0.0032469]
[1645159059196,0.00036347,2902.1,2902.0,0.00383999]
[1645159059396,0.00036347,2902.1,2902.0,0.65135207]
[1645159059601,0.00036347,2902.1,2901.6,2.37501207]
[1645159059805,0.00036347,2902.1,2901.7,0.65135207]
[1645159060001,0.00036347,2902.1,2901.8,0.00383999]
[1645159060400,0.00036347,2902.1,2901.6,0.64751208]
[1645159060401,0.00036347,2902.1,2901.6,0.65135207]
[1645159060603,0.00036347,2902.1,2901.7,0.00383999]
[1645159061855,0.86221347,2902.1,2901.7,0.00383999]
[1645159062255,0.00036347,2902.1,2901.7,0.00383999]
[1645159063157,0.00036347,2902.1,2901.8,2.58843725]
[1645159063457,0.00036347,2902.1,2901.9,0.65135207]
[1645159064057,0.00036347,2902.1,2901.9,1.51307207]
[1645159064358,0.00036347,2902.1,2902.0,0.64751208]
[1645159065901,1.03533294,2902.1,2902.0,0.64751208]
[1645159066303,1.03533294,2902.1,2902.0,0.65135234]
[1645159067607,1.03533294,2902.1,2902.0,0.00384026]
[1645159067804,1.03533294,2902.1,2902.0,0.65639752]
[1645159068610,1.83932387,2902.1,2902.0,0.65639752]
[1645159071153,1.03533294,2902.1,2902.0,0.65639752]
[1645159071752,1.84031744,2902.1,2902.0,0.65639752]
[1645159071954,1.84031744,2902.1,2902.0,1.51804752]
[1645159072353,1.03533294,2902.1,2902.0,1.51804752]
[1645159072758,1.84038228,2902.1,2902.0,0.65639752]
[1645159073197,1.84038228,2902.1,2902.0,1.51805752]
[1645159073397,1.84038228,2902.1,2902.0,0.65639752]
[1645159074199,1.84038228,2902.1,2902.0,1.51805752]
[1645159076201,1.84038228,2902.1,2902.0,0.65639752]
[1645159079372,1.03533294,2902.1,2902.0,0.65639752]
[1645159079572,1.84202829,2902.1,2902.0,0.65639752]
[1645159079772,1.84208093,2902.1,2902.0,0.65639752]
[1645159079972,1.84207629,2902.1,2902.0,0.00384026]
[1645159080173,1.84207005,2902.1,2902.0,0.65255726]
[1645159080375,1.84205843,2902.1,2902.0,0.65639752]
[1645159080796,1.03533294,2902.1,2902.0,0.65639752]
[1645159081599,1.03533294,2902.1,2902.0,0.00384026]
[1645159081800,1.03533294,2902.1,2902.0,0.65855184]
[1645159081801,1.84207097,2902.1,2902.0,0.65855184]
[1645159082005,1.03533294,2902.1,2902.0,0.65855184]
[1645159082201,1.84203295,2902.1,2902.0,0.65855184]
[1645159085356,5.34203295,2902.1,2902.0,0.00226809]
[1645159085559,5.34203295,2902.1,2902.0,0.65477666]
[1645159085756,5.34203295,2902.1,2902.0,0.00226809]
[1645159085958,5.34203295,2902.1,2902.0,0.65385068]
[1645159086156,5.34203295,2902.1,2901.9,0.00324715]
[1645159086356,0.80670001,2902.0,2901.9,0.00324715]
[1645159086556,1.66855001,2902.0,2901.9,0.00324715]
[1645159086959,1.66855001,2902.0,2901.8,0.00226809]
[1645159087160,1.66855001,2902.0,2901.4,1.85359972]
[1645159087161,0.80764156,2901.9,2901.7,0.65385087]
[1645159087360,0.80764156,2901.9,2901.8,0.65709809]
[1645159087559,0.80764156,2901.9,2901.8,0.65936618]
[1645159088204,0.80764156,2901.9,2901.8,0.65611896]
[1645159088402,0.80770074,2902.0,2901.8,0.65611896]
[1645159088603,1.03533294,2902.1,2901.8,0.65611896]
[1645159088802,1.03533294,2902.1,2901.8,2.37947896]
[1645159089006,0.80779303,2902.0,2901.9,0.65385087]
[1645159089202,0.80779303,2902.0,2901.9,1.51552087]
[1645159089203,0.80779315,2902.0,2901.9,1.51552087]
[1645159089404,0.80776776,2902.0,2901.9,1.51552087]
[1645159089604,1.03533294,2902.1,2901.9,1.51552087]
[1645159089805,1.03533294,2902.1,2902.0,1.51544087]
[1645159090005,1.84319062,2902.1,2902.0,1.51544087]
[1645159090205,1.8431828,2902.1,2902.0,1.51544087]
[1645159090405,1.84318739,2902.1,2902.0,1.51544087]
[1645159090606,1.84318564,2902.1,2902.0,0.65385087]
[1645159092564,1.84318564,2902.1,2902.0,1.51550087]
[1645159093360,1.84318564,2902.1,2902.0,0.65385087]
[1645159093961,1.84318564,2902.1,2902.0,1.51550087]
[1645159094960,1.84318564,2902.1,2902.0,0.65385087]
[1645159095814,1.84318564,2902.1,2901.9,0.65709802]
[1645159096017,0.8078527,2902.0,2901.9,0.65709802]
[1645159096717,0.8078527,2902.0,2901.9,0.65385087]
[1645159100555,0.8078527,2902.0,2901.8,0.65936618]
[1645159100756,0.8078527,2902.0,2901.9,0.65385087]
[1645159102755,0.8078527,2902.0,2901.8,0.00226809]
[1645159103004,0.8078527,2902.0,2901.8,0.00551531]
[1645159103204,0.8078527,2902.0,2901.9,0.65385087]
[1645159104011,1.03533294,2902.1,2901.9,0.65385087]
[1645159104204,0.80828134,2902.0,2901.9,1.51557087]
[1645159104404,1.03533294,2902.1,2901.9,0.65385087]
[1645159104609,0.8082353,2902.0,2901.9,0.65385087]
[1645159104808,1.03533294,2902.1,2901.9,0.65385087]
[1645159105006,0.80819705,2902.0,2901.9,0.65385087]
[1645159105206,0.80819886,2902.0,2901.9,1.51556087]
[1645159105409,1.03533294,2902.1,2901.9,0.65385087]
[1645159105607,0.80819845,2902.0,2901.9,0.65385087]
[1645159105806,1.03533294,2902.1,2901.9,0.65385087]
[1645159106006,0.80822007,2902.0,2901.9,0.65385087]
[1645159106207,1.03533294,2902.1,2901.9,0.65385087]
[1645159106408,0.80822703,2902.0,2901.9,0.67458019]
[1645159106612,1.03533294,2902.1,2901.9,0.02397651]
[1645159107054,1.03533294,2902.1,2902.0,0.65385087]
[1645159107257,1.84355993,2902.1,2902.0,0.65385087]
[1645159107459,1.84357055,2902.1,2902.0,0.65385087]
[1645159107655,1.84357552,2902.1,2902.0,0.65385087]
[1645159107853,1.03533294,2902.1,2902.0,0.65385087]
[1645159108053,1.84358326,2902.1,2902.0,0.65385087]
[1645159108254,1.03533294,2902.1,2902.0,0.65385087]
[1645159108453,1.84359545,2902.1,2902.0,0.65385087]
[1645159108656,1.84363725,2902.1,2902.0,0.65385087]
[1645159108955,1.03533294,2902.1,2902.0,0.65385087]
[1645159109160,1.84377003,2902.1,2902.0,0.65385087]
[1645159109354,1.84377041,2902.1,2902.0,0.65385087]
[1645159109555,1.8437578,2902.1,2902.0,0.65385087]
[1645159109757,1.84377054,2902.1,2902.0,0.65385087]
[1645159109960,0.80880128,2902.1,2902.0,0.65385087]
[1645159110161,0.80880128,2902.1,2902.0,4.15385087]
[1645159110162,0.80882836,2902.1,2902.0,4.15385087]
[1645159110359,0.80847944,2902.6,2902.0,5.10795059]
[1645159110607,0.80847987,2902.5,2902.1,0.65385087]
[1645159110807,0.80847987,2902.4,2902.1,1.30795059]
[1645159111011,3.2128,2902.8,2902.1,1.30795059]
[1645159111208,0.8082419,2902.7,2902.2,1.51560972]
[1645159111408,0.8082419,2902.7,2902.3,1.51532087]
[1645159111609,0.8082419,2902.7,2902.2,3.24179671]
[1645159111610,0.8082419,2902.7,2902.4,0.65385087]
[1645159111816,0.8082419,2902.6,2902.5,0.65385087]
[1645159112313,0.81483775,2902.6,2902.5,0.65385087]
[1645159112512,1.12674234,2902.6,2902.5,0.65385087]
[1645159112713,1.94158009,2902.6,2902.5,0.65385087]
[1645159115057,1.94158009,2902.6,2902.5,0.64580284]
[1645159115460,1.94158009,2902.6,2902.4,0.64581395]
[1645159115658,0.81483775,2902.5,2902.2,0.00324711]
[1645159115858,1.67656775,2902.5,2902.1,0.64580797]
[1645159116062,0.81483775,2902.4,2902.2,0.00324709]
[1645159116458,0.81483775,2902.3,2902.2,0.00324709]
[1645159116864,0.81483775,2902.5,2902.2,0.00324709]
[1645159117068,0.81483775,2902.3,2902.0,0.64580797]
[1645159117265,4.62674234,2902.6,2902.1,0.649055]
[1645159117465,0.81421693,2902.5,2902.2,0.64580797]
[1645159117665,0.81421693,2902.5,2902.3,0.64580797]
[1645159117865,0.81421693,2902.5,2902.1,0.00324703]
[1645159118310,0.81421693,2902.5,2901.8,3.23090966]
[1645159118510,4.31421693,2902.5,2902.2,0.00324699]
[1645159118716,0.81421693,2902.4,2902.2,0.00324699]
[1645159118910,0.81421693,2902.4,2902.0,0.64580966]
[1645159118911,0.00038453,2902.1,2902.0,0.64580966]
[1645159119310,1.17273675,2902.0,2901.8,0.64580966]
[1645159119714,1.17273675,2902.0,2901.7,0.00226809]
[1645159119715,0.81421693,2901.9,2901.7,0.00226809]
[1645159120117,0.81421693,2901.9,2901.7,0.64815505]
[1645159120315,0.81421693,2901.9,2901.8,0.64588696]
[1645159120916,0.81421693,2901.9,2901.7,0.64815505]
[1645159121317,0.81421693,2901.9,2901.8,0.64588696]
[1645159121762,0.81421693,2901.9,2901.7,0.64815505]
[1645159121965,0.81421693,2901.9,2901.8,0.64588696]
[1645159122273,0.81421693,2901.9,2901.7,1.51318233]
[1645159122470,0.81421693,2901.9,2901.8,0.64588696]
[1645159124773,1.17273675,2902.0,2901.8,1.50759696]
[1645159124969,1.17273675,2902.0,2901.9,0.64588696]
[1645159125168,1.98670117,2902.0,2901.9,0.64588696]
[1645159125807,0.81396442,2902.0,2901.9,0.64588696]
[1645159126019,0.00038453,2902.1,2901.9,2.36910696]
[1645159126316,0.00038453,2902.1,2902.0,0.64588696]
[1645159127115,0.00038453,2902.1,2902.0,1.50739696]
[1645159129662,0.00038453,2902.1,2902.0,0.64588696]
[1645159131466,0.00038453,2902.1,2902.0,0.67619687]
[1645159134619,0.00038453,2902.1,2902.0,1.53788687]
[1645159136521,0.00038453,2902.1,2902.0,1.52761457]
[1645159137360,0.00038453,2902.1,2902.0,2.12761457]
[1645159137564,0.00038453,2902.1,2902.0,3.12761457]
[1645159137960,0.00038453,2902.1,2902.0,1.82761457]
[1645159138666,0.00038453,2902.1,2902.0,0.96592457]
[1645159139262,0.87790206,2902.1,2902.0,0.66592457]
[1645159139463,1.69203825,2902.1,2902.0,0.66592457]
[1645159141308,1.69203825,2902.1,2902.0,0.67619687]
[1645159146358,1.69203825,2902.1,2902.0,0.66592457]
[1645159148813,0.81452072,2902.1,2902.0,0.66592457]
[1645159149014,0.00038453,2902.1,2902.0,1.82760457]
[1645159150516,0.00038453,2902.1,2902.0,1.52760457]
[1645159150719,0.00038453,2902.1,2902.0,1.82760457]
[1645159150918,0.00038453,2902.1,2902.0,1.52760457]
[1645159151315,0.00038453,2902.1,2902.0,1.82760457]
[1645159151759,0.00038453,2902.1,2902.0,1.52760457]
[1645159154064,0.00038453,2902.1,2902.0,0.88171761]
[1645159154267,0.00038453,2902.1,2902.0,1.53073084]
[1645159156111,0.00038453,2902.1,2902.0,0.66905084]
[1645159158715,0.81150426,2902.1,2902.0,0.66905084]
[1645159159359,0.00038453,2902.1,2902.0,0.66905084]
[1645159159961,0.00038453,2902.1,2902.0,0.66819429]
[1645159162368,0.81150426,2902.1,2902.0,0.66819429]
[1645159162566,0.00038453,2902.1,2902.0,0.66819429]
[1645159164516,0.00038453,2902.1,2902.0,1.52986429]
[1645159166017,0.00038453,2902.1,2902.0,0.66819429]
[1645159166417,0.00038453,2902.1,2902.0,0.65944088]
[1645159168163,0.00038453,2902.1,2902.0,1.52111088]
[1645159170515,0.00038453,2902.1,2902.0,0.65944088]
[1645159171317,0.00038453,2902.1,2902.0,0.66899957]
[1645159173131,0.81150426,2902.1,2902.0,0.66899957]
[1645159173530,0.00038453,2902.1,2902.0,0.66899957]
[1645159176363,0.00038453,2902.1,2902.0,1.53066957]
[1645159176562,0.00038453,2902.1,2902.0,1.52111088]
[1645159179819,0.00038453,2902.1,2902.0,0.65944088]
[1645159183567,0.00038453,2902.1,2902.0,1.52112088]
[1645159187716,0.00038453,2902.1,2902.0,0.65944088]
[1645159188716,0.00038453,2902.1,2902.0,1.52111088]
[1645159190165,0.00038453,2902.1,2902.0,5.02111088]
[1645159190364,0.81111973,2902.2,2902.1,3.50106237]
[1645159190563,0.81111973,2902.2,2902.1,9.0065656]
[1645159190765,0.66142329,2903.0,2902.1,10.26066532]
[1645159190964,0.66142329,2903.0,2902.2,0.64688007]
[1645159190965,0.00498785,2902.8,2902.2,0.64688007]
[1645159191162,0.81111973,2902.7,2902.4,1.7226]
[1645159191362,0.81111973,2902.6,2902.5,0.64688007]
[1645159191564,0.81111973,2902.6,2902.5,1.50822007]
[1645159191764,0.00498785,2902.8,2902.6,1.7227]
[1645159191966,0.66941953,2903.1,2902.7,0.64688007]
[1645159192164,0.81964369,2903.0,2902.7,0.64688007]
[1645159192364,0.81465584,2902.9,2902.7,0.64688007]
[1645159193226,0.81465584,2902.9,2902.7,2.36964007]
[1645159193429,0.81465584,2902.9,2902.8,1.50826007]
[1645159193633,0.81465584,2902.9,2902.8,0.64688007]
[1645159194835,0.81465584,2902.9,2902.7,0.64688007]
[1645159195034,0.81465584,2902.8,2902.7,0.64688007]
[1645159198271,0.81465584,2902.8,2902.5,0.64688007]
[1645159198472,4.31964369,2902.7,2902.1,1.43570969]
[1645159198675,0.81465584,2902.6,2902.2,0.64973645]
[1645159198870,0.81465584,2902.5,2902.3,0.86164]
[1645159199073,0.80994883,2902.4,2902.3,0.86164]
[1645159199272,0.80994883,2902.4,2902.2,1.72316]
[1645159199472,3.5,2902.8,2902.3,0.64971953]
[1645159199671,0.80992222,2902.7,2902.3,0.64971953]
[1645159199872,0.00498785,2902.6,2902.3,0.64971953]
[1645159200072,0.80992222,2902.5,2902.3,1.51133953]
[1645159200273,0.80992222,2902.5,2902.4,0.64972857]
[1645159200523,0.80992222,2902.6,2902.1,0.30430957]
[1645159200724,0.80992222,2902.5,2902.2,0.64973093]
[1645159200922,0.80992222,2902.4,2902.2,0.64973093]
[1645159201121,0.80992222,2902.6,2902.2,0.64973093]
[1645159201320,0.80992222,2902.5,2902.3,0.64973093]
[1645159201520,0.80992222,2902.5,2902.4,0.64973093]
[1645159201723,1.05993882,2902.4,2902.1,0.0043095]
[1645159201922,0.80992222,2902.3,2902.1,0.0043095]
[1645159202122,0.80992222,2902.3,2902.2,0.64970124]
[1645159202422,0.80992222,2902.3,2902.2,0.65335757]
[1645159202621,0.80992222,2902.3,2902.1,0.00106237]
[1645159202622,0.80992222,2902.3,2902.1,0.65764012]
[1645159202822,0.80992222,2902.3,2902.2,0.65333107]
[1645159203023,0.80992222,2902.3,2902.2,0.64985742]
[1645159203227,0.80987846,2902.3,2902.2,1.51134742]
[1645159203422,0.00498785,2902.8,2902.2,1.51134742]
[1645159203623,0.80984559,2902.7,2902.3,0.64985742]
[1645159203824,0.00498785,2902.6,2902.4,0.86153]
[1645159204024,0.80984559,2902.7,2902.4,0.86153]
[1645159204025,0.80984559,2902.5,2902.4,0.86153]
[1645159204465,0.66142329,2902.9,2902.4,2.37281123]
[1645159204466,0.80984559,2902.8,2902.4,2.37281123]
[1645159204667,1.06847824,2902.6,2902.4,2.37281123]
[1645159204871,1.06847824,2902.6,2902.3,1.72304]
[1645159204872,0.80984559,2902.5,2902.3,1.72304]
[1645159205070,0.81483344,2902.5,2902.3,1.72304]
[1645159205272,0.80984559,2902.4,2902.1,0.86594962]
[1645159205468,0.80984559,2902.4,2902.2,2.37294031]
[1645159205670,0.80984559,2902.4,2902.3,0.64976031]
[1645159205875,0.80984559,2902.4,2902.3,1.51134031]
[1645159206071,0.80984559,2902.4,2902.3,0.64976031]
[1645159211319,0.80984559,2902.4,2902.3,0.66332815]
[1645159214976,0.80854641,2902.4,2902.3,0.66332815]
[1645159217222,0.00498785,2903.0,2902.3,1.82464815]
[1645159217419,0.01298382,2903.1,2902.3,1.82464815]
[1645159217420,0.01797167,2903.1,2902.6,0.71761541]
[1645159217622,0.01298382,2903.1,2902.6,0.71761541]
[1645159217922,0.01298382,2903.1,2903.0,0.94677125]
[1645159218222,0.00498785,2903.2,2903.0,2.30290125]
[1645159218422,0.137905,2903.3,2903.1,0.3]
[1645159218423,0.14289285,2903.3,2903.1,0.3]
[1645159218624,0.14289285,2903.3,2903.1,1.16112]
[1645159219024,0.14289285,2903.3,2903.2,1.72232]
[1645159219264,0.137905,2903.3,2903.2,1.72232]
[1645159219667,0.137905,2903.3,2903.1,1.72245]
[1645159219866,0.14289285,2903.3,2903.0,1.35613]
[1645159220668,0.14289285,2903.3,2903.0,2.21748]
[1645159221068,0.14289285,2903.3,2903.0,1.35613]
[1645159221469,0.14289285,2903.3,2903.1,0.02663444]
[1645159221672,0.14289285,2903.3,2903.1,0.32663444]
[1645159222867,0.14289285,2903.3,2903.1,0.02663444]
[1645159223311,0.00498785,2903.3,2903.1,0.02663444]
[1645159223511,0.00498785,2903.6,2903.1,0.02663444]
[1645159223712,3.50498785,2903.6,2903.1,0.88800444]
[1645159223912,3.50498785,2903.6,2903.1,0.02663444]
[1645159224316,4.16142329,2903.6,2903.1,0.02663444]
[1645159224716,0.65643544,2903.5,2903.1,0.02663444]
[1645159224921,3.50498785,2903.4,2903.1,0.02663444]
[1645159225118,4.16142329,2903.4,2903.1,0.02663444]
[1645159225518,0.65643544,2903.3,2903.1,0.02663444]
[1645159225717,3.5,2903.2,2903.1,0.02663444]
[1645159225917,3.50498785,2903.2,2903.1,0.02663444]
[1645159226117,4.16142329,2903.2,2903.1,0.02663444]
[1645159226417,4.16142329,2903.2,2903.1,0.01341673]
[1645159227883,4.46142329,2903.2,2903.1,0.01341673]
[1645159228082,5.66038158,2903.2,2903.1,0.01341673]
[1645159229082,5.83248158,2903.2,2903.1,0.01341673]
[1645159229282,4.97708785,2903.2,2903.1,0.01341673]
[1645159229484,5.11499685,2903.2,2903.1,0.01341673]
[1645159229882,4.97708785,2903.2,2903.1,0.01341673]
[1645159231324,0.86165,2903.1,2902.9,0.0153334]
[1645159231524,3.6721,2903.0,2902.9,0.0153334]
[1645159231724,3.50498785,2903.0,2902.9,0.0153334]
[1645159232524,0.6596095,2903.0,2902.9,0.0153334]
[1645159232725,4.1596095,2903.0,2902.9,0.0153334]
[1645159235069,4.96535185,2903.0,2902.9,0.0153334]
[1645159235272,6.26535185,2903.0,2902.9,0.0153334]
[1645159235471,5.6107302,2903.0,2902.9,0.0153334]
[1645159236475,5.6107302,2903.0,2902.1,0.00410441]
[1645159236476,5.5,2902.9,2902.1,0.00410441]
[1645159236673,0.65467489,2902.7,2902.2,0.63955565]
[1645159236871,3.5,2902.6,2902.2,0.63955565]
[1645159237071,0.80574235,2902.5,2902.1,0.00410441]
[1645159237278,3.5,2902.4,2902.1,0.00106237]
[1645159237472,0.80574235,2902.3,2902.1,0.00106237]
[1645159237674,1.0835922,2902.2,2902.1,0.00410414]
[1645159237874,1.88933455,2902.2,2902.1,0.00410414]
[1645159238522,1.88933455,2902.2,2902.1,0.00106237]
[1645159239129,1.88933455,2902.2,2901.9,0.00226809]
[1645159239130,5.5,2902.1,2901.9,0.00226809]
[1645159239332,5.38933455,2902.2,2901.7,0.63941757]
[1645159239333,4.30574235,2902.0,2901.7,0.63941757]
[1645159239533,1.0835922,2902.2,2901.7,0.00226809]
[1645159239534,0.80574235,2901.9,2901.7,0.00226809]
[1645159239729,1.0835922,2902.2,2901.8,0.00226809]
[1645159239933,1.0835922,2902.2,2901.4,0.63919699]
[1645159239934,0.81814059,2902.1,2901.4,0.63919699]
[1645159240134,1.64511548,2902.1,2901.5,0.64146508]
[1645159240333,1.64511548,2902.1,2901.2,0.00226809]
[1645159240334,0.81814059,2902.0,2901.2,0.00226809]
[1645159240530,1.01778308,2901.3,2901.2,0.00226809]
[1645159240731,1.01778308,2901.3,2901.2,0.641477]
[1645159241131,1.01778308,2901.3,2901.2,0.00226809]
[1645159241331,1.01778308,2901.3,2900.9,1.503457]
[1645159241531,3.5,2901.7,2901.0,0.63920891]
[1645159241768,0.81783702,2901.6,2901.1,0.00226809]
[1645159241974,0.81783702,2901.5,2901.1,0.641477]
[1645159242173,4.36193,2901.8,2901.2,0.00226809]
[1645159242375,0.8178833,2901.7,2901.2,0.86741569]
[1645159242580,0.8178833,2901.6,2901.3,0.641477]
[1645159242776,0.8178833,2901.5,2901.3,0.641477]
[1645159242974,0.8178833,2901.4,2901.3,0.641477]
[1645159243173,1.12052786,2901.6,2901.3,0.641477]
[1645159243375,0.8178833,2901.5,2901.3,0.641477]
[1645159243574,0.8178833,2901.5,2901.3,0.00226809]
[1645159243773,3.1833,2901.9,2901.3,0.00226809]
[1645159243974,0.81701079,2901.8,2901.3,0.64052415]
[1645159244174,0.81701079,2901.7,2901.3,0.64052415]
[1645159244375,4.31701079,2901.9,2901.3,0.64052415]
[1645159244575,0.81701079,2901.8,2901.3,0.64052415]
[1645159244776,0.89090518,2901.6,2901.4,0.64150357]
[1645159245079,0.89090518,2901.6,2901.5,0.00226809]
[1645159245383,1.70782474,2901.6,2901.4,0.00324751]
[1645159245617,1.70782474,2901.6,2901.3,0.00226809]
[1645159245618,0.81691956,2901.5,2901.3,0.6403562]
[1645159246018,0.81691956,2901.5,2901.4,0.00324751]
[1645159246422,0.89090518,2901.6,2901.4,0.00324751]
[1645159246625,0.81640849,2901.5,2901.4,0.00324751]
[1645159246828,0.81640849,2901.5,2901.3,0.00226809]
[1645159247224,0.81640849,2901.5,2901.4,0.00324751]
[1645159248026,0.81640849,2901.5,2901.2,0.63984101]